[Event "Titled Tuesday Blitz May 30 Late 2023"]
[White "Kravtsiv, Martyn"]
[Black "Lopez Mulet, Inigo"]
[WhiteFideId "14113147"]
[BlackFideId "22235620"]
[WhiteElo "2695"]
[BlackElo "2289"]
[Result "1-0"]
[Round "03"]
[TimeControl "180+2"]
[Date "2023.05.31"]
[WhiteClock "0:00:16"]
[BlackClock "0:00:19"]

1. e4 {[%clk 0:03:00]}  c5 {[%clk 0:02:59]} 2. Nf3 {[%clk 0:03:00]}  g6 {[%clk 0:02:58]} 3. d4 {[%clk 0:02:58]}  cxd4 {[%clk 0:02:59]} 4. Nxd4 {[%clk 0:02:58]}  Bg7 {[%clk 0:02:58]} 5. Nc3 {[%clk 0:02:57]}  Nc6 {[%clk 0:02:58]} 6. Be3 {[%clk 0:02:56]}  Nf6 {[%clk 0:02:58]} 7. Bc4 {[%clk 0:02:51]}  O-O {[%clk 0:02:54]} 8. Bb3 {[%clk 0:02:50]}  Re8 {[%clk 0:02:52]} 9. O-O {[%clk 0:02:44]}  e6 {[%clk 0:02:52]} 10. Ndb5 {[%clk 0:02:43]}  d5 {[%clk 0:02:50]} 11. exd5 {[%clk 0:02:40]}  exd5 {[%clk 0:02:50]} 12. Nxd5 {[%clk 0:02:39]}  Nxd5 {[%clk 0:02:48]} 13. Qxd5 {[%clk 0:02:40]}  Qxd5 {[%clk 0:02:36]} 14. Bxd5 {[%clk 0:02:39]}  Bxb2 {[%clk 0:02:37]} 15. Nd6 {[%clk 0:02:29]}  Rd8 {[%clk 0:02:05]} 16. Bxf7+ {[%clk 0:01:55]}  Kg7 {[%clk 0:01:31]} 17. Rad1 {[%clk 0:01:54]}  Rxd6 {[%clk 0:01:28]} 18. Rxd6 {[%clk 0:01:55]}  Kxf7 {[%clk 0:01:28]} 19. f4 {[%clk 0:01:55]}  Ba3 {[%clk 0:01:26]} 20. Rd3 {[%clk 0:01:54]}  Be7 {[%clk 0:01:25]} 21. Rb1 {[%clk 0:01:53]}  Bf5 {[%clk 0:01:23]} 22. Rc3 {[%clk 0:01:49]}  Nb4 {[%clk 0:01:18]} 23. Bc5 {[%clk 0:01:23]}  Nxa2 {[%clk 0:00:59]} 24. Rxb7 {[%clk 0:01:20]}  Nxc3 {[%clk 0:00:58]} 25. Rxe7+ {[%clk 0:01:20]}  Kg8 {[%clk 0:00:57]} 26. Bd4 {[%clk 0:01:20]}  Nb5 {[%clk 0:00:46]} 27. Be5 {[%clk 0:01:19]}  Bxc2 {[%clk 0:00:38]} 28. Rg7+ {[%clk 0:01:19]}  Kf8 {[%clk 0:00:39]} 29. Rxh7 {[%clk 0:01:19]}  Bb3 {[%clk 0:00:38]} 30. Rb7 {[%clk 0:01:09]}  Bc4 {[%clk 0:00:37]} 31. h4 {[%clk 0:01:07]}  a5 {[%clk 0:00:37]} 32. f5 {[%clk 0:01:07]}  gxf5 {[%clk 0:00:33]} 33. h5 {[%clk 0:01:07]}  Ra7 {[%clk 0:00:25]} 34. Rb8+ {[%clk 0:00:53]}  Kf7 {[%clk 0:00:25]} 35. Rc8 {[%clk 0:00:49]}  Be6 {[%clk 0:00:23]} 36. Rb8 {[%clk 0:00:47]}  Nc7 {[%clk 0:00:18]} 37. Rh8 {[%clk 0:00:46]}  Nb5 {[%clk 0:00:16]} 38. Rb8 {[%clk 0:00:42]}  Bd7 {[%clk 0:00:14]} 39. Rb6 {[%clk 0:00:32]}  a4 {[%clk 0:00:14]} 40. h6 {[%clk 0:00:32]}  Kg8 {[%clk 0:00:14]} 41. Rb8+ {[%clk 0:00:25]}  Kh7 {[%clk 0:00:14]} 42. Rh8+ {[%clk 0:00:25]}  Kg6 {[%clk 0:00:14]} 43. Bf4 {[%clk 0:00:25]}  Be6 {[%clk 0:00:15]} 44. Re8 {[%clk 0:00:25]}  Bf7 {[%clk 0:00:14]} 45. Rb8 {[%clk 0:00:25]}  a3 {[%clk 0:00:14]} 46. Rb6+ {[%clk 0:00:22]}  Kh7 {[%clk 0:00:14]} 47. Rxb5 {[%clk 0:00:21]}  a2 {[%clk 0:00:14]} 48. Be5 {[%clk 0:00:21]}  a1=Q+ {[%clk 0:00:15]} 49. Bxa1 {[%clk 0:00:21]}  Rxa1+ {[%clk 0:00:16]} 50. Kh2 {[%clk 0:00:21]}  Kxh6 {[%clk 0:00:16]} 51. Rxf5 {[%clk 0:00:21]}  Bg6 {[%clk 0:00:16]} 52. Rf4 {[%clk 0:00:21]}  Ra2 {[%clk 0:00:17]} 53. Rg4 {[%clk 0:00:20]}  Kh5 {[%clk 0:00:17]} 54. Rg3 {[%clk 0:00:19]}  Bf5 {[%clk 0:00:18]} 55. Rg7 {[%clk 0:00:18]}  Be4 {[%clk 0:00:17]} 56. Rg3 {[%clk 0:00:17]}  Kh4 {[%clk 0:00:18]} 57. Rg7 {[%clk 0:00:17]}  Bf5 {[%clk 0:00:18]} 58. Rg8 {[%clk 0:00:17]}  Bg4 {[%clk 0:00:18]} 59. Rg7 {[%clk 0:00:17]}  Bh5 {[%clk 0:00:18]} 60. Rg8 {[%clk 0:00:17]}  Ra7 {[%clk 0:00:19]} 61. g3# {[%clk 0:00:16]} 1-0


[Site "https://www.chess.com"]

[Event "Titled Tuesday Blitz May 30 Late 2023"]
[White "Gorovets, Andrey"]
[Black "Mustafayev, Farid"]
[WhiteFideId "13504037"]
[BlackFideId "13408771"]
[WhiteElo "2459"]
[BlackElo "2197"]
[Result "0-1"]
[Round "03"]
[TimeControl "180+2"]
[Date "2023.05.31"]
[WhiteClock "0:00:02"]
[BlackClock "0:00:12"]

1. Nf3 {[%clk 0:02:57]}  c5 {[%clk 0:02:57]} 2. c4 {[%clk 0:02:57]}  Nf6 {[%clk 0:02:57]} 3. d4 {[%clk 0:02:53]}  cxd4 {[%clk 0:02:57]} 4. Nxd4 {[%clk 0:02:54]}  e6 {[%clk 0:02:55]} 5. Nc3 {[%clk 0:02:50]}  a6 {[%clk 0:02:56]} 6. g3 {[%clk 0:02:50]}  Qc7 {[%clk 0:02:55]} 7. Bg2 {[%clk 0:02:46]}  Nc6 {[%clk 0:02:48]} 8. O-O {[%clk 0:02:43]}  Be7 {[%clk 0:02:46]} 9. b3 {[%clk 0:02:14]}  b6 {[%clk 0:02:35]} 10. e4 {[%clk 0:02:09]}  Bb7 {[%clk 0:02:33]} 11. Be3 {[%clk 0:02:07]}  O-O {[%clk 0:02:29]} 12. Rc1 {[%clk 0:02:07]}  Nxd4 {[%clk 0:02:24]} 13. Bxd4 {[%clk 0:02:04]}  d6 {[%clk 0:02:24]} 14. Re1 {[%clk 0:01:52]}  Nd7 {[%clk 0:02:11]} 15. Qd2 {[%clk 0:01:48]}  Rac8 {[%clk 0:02:09]} 16. f4 {[%clk 0:01:44]}  Qb8 {[%clk 0:01:55]} 17. Bf2 {[%clk 0:01:31]}  Bc6 {[%clk 0:01:46]} 18. Ne2 {[%clk 0:01:25]}  Qa8 {[%clk 0:01:40]} 19. Nd4 {[%clk 0:01:22]}  Bb7 {[%clk 0:01:41]} 20. f5 {[%clk 0:01:06]}  e5 {[%clk 0:01:32]} 21. Nc2 {[%clk 0:01:04]}  Nc5 {[%clk 0:01:24]} 22. Qe2 {[%clk 0:00:57]}  b5 {[%clk 0:00:56]} 23. cxb5 {[%clk 0:00:56]}  axb5 {[%clk 0:00:56]} 24. Nb4 {[%clk 0:00:42]}  Qa5 {[%clk 0:00:48]} 25. Qd2 {[%clk 0:00:31]}  Na6 {[%clk 0:00:43]} 26. a3 {[%clk 0:00:20]}  Qxa3 {[%clk 0:00:39]} 27. Nxa6 {[%clk 0:00:15]}  Qxa6 {[%clk 0:00:37]} 28. Ra1 {[%clk 0:00:15]}  Qc6 {[%clk 0:00:36]} 29. Rec1 {[%clk 0:00:10]}  Qd7 {[%clk 0:00:36]} 30. Qd3 {[%clk 0:00:11]}  Rxc1+ {[%clk 0:00:34]} 31. Rxc1 {[%clk 0:00:11]}  Bg5 {[%clk 0:00:35]} 32. Rd1 {[%clk 0:00:11]}  Be7 {[%clk 0:00:33]} 33. Bc5 {[%clk 0:00:08]}  Rc8 {[%clk 0:00:32]} 34. Bb4 {[%clk 0:00:09]}  h5 {[%clk 0:00:28]} 35. h4 {[%clk 0:00:09]}  Qc6 {[%clk 0:00:26]} 36. Kh2 {[%clk 0:00:08]}  Qc2 {[%clk 0:00:26]} 37. Kh3 {[%clk 0:00:07]}  Qxd3 {[%clk 0:00:25]} 38. Rxd3 {[%clk 0:00:08]}  g6 {[%clk 0:00:22]} 39. fxg6 {[%clk 0:00:06]}  fxg6 {[%clk 0:00:22]} 40. g4 {[%clk 0:00:07]}  Kg7 {[%clk 0:00:21]} 41. gxh5 {[%clk 0:00:07]}  gxh5 {[%clk 0:00:22]} 42. Rg3+ {[%clk 0:00:06]}  Kh6 {[%clk 0:00:21]} 43. Bf3 {[%clk 0:00:05]}  Rf8 {[%clk 0:00:17]} 44. Bd2+ {[%clk 0:00:04]}  Kh7 {[%clk 0:00:17]} 45. Kg2 {[%clk 0:00:02]}  Bxh4 {[%clk 0:00:16]} 46. Rh3 {[%clk 0:00:03]}  Be7 {[%clk 0:00:14]} 47. Rxh5+ {[%clk 0:00:03]}  Kg6 {[%clk 0:00:14]} 48. Rh6+ {[%clk 0:00:03]}  Kg7 {[%clk 0:00:15]} 49. Re6 {[%clk 0:00:03]}  Kf7 {[%clk 0:00:14]} 50. Rh6 {[%clk 0:00:03]}  Rg8+ {[%clk 0:00:15]} 51. Kf2 {[%clk 0:00:03]}  Rg7 {[%clk 0:00:14]} 52. Ke2 {[%clk 0:00:03]}  b4 {[%clk 0:00:12]} 53. Bh5+ {[%clk 0:00:02]}  Kg8 {[%clk 0:00:12]} 0-1


[Site "https://www.chess.com"]

[Event "Titled Tuesday Blitz May 30 Late 2023"]
[White "Petrosyan, Manuel"]
[Black "Mortazavi, Ali"]
[WhiteFideId "13300857"]
[BlackFideId "401323"]
[WhiteElo "2576"]
[BlackElo "2339"]
[Result "1-0"]
[Round "03"]
[TimeControl "180+2"]
[Date "2023.05.31"]
[WhiteClock "0:00:05"]
[BlackClock "0:00:04"]

1. e4 {[%clk 0:03:00]}  c6 {[%clk 0:02:59]} 2. d4 {[%clk 0:03:00]}  d5 {[%clk 0:02:59]} 3. e5 {[%clk 0:03:01]}  Bf5 {[%clk 0:03:00]} 4. Nf3 {[%clk 0:03:01]}  e6 {[%clk 0:03:00]} 5. Be2 {[%clk 0:03:01]}  Ne7 {[%clk 0:03:01]} 6. O-O {[%clk 0:03:00]}  Ng6 {[%clk 0:03:01]} 7. Re1 {[%clk 0:02:53]}  Nd7 {[%clk 0:03:00]} 8. Nbd2 {[%clk 0:02:51]}  f6 {[%clk 0:03:00]} 9. Nf1 {[%clk 0:01:59]}  fxe5 {[%clk 0:02:56]} 10. dxe5 {[%clk 0:02:00]}  Bc5 {[%clk 0:02:49]} 11. Ng3 {[%clk 0:01:42]}  O-O {[%clk 0:02:48]} 12. Nxf5 {[%clk 0:01:36]}  Rxf5 {[%clk 0:02:27]} 13. Bd3 {[%clk 0:01:36]}  Rf8 {[%clk 0:02:26]} 14. Bxg6 {[%clk 0:01:24]}  hxg6 {[%clk 0:02:25]} 15. Be3 {[%clk 0:01:23]}  Rf5 {[%clk 0:02:07]} 16. g4 {[%clk 0:01:08]}  Rf8 {[%clk 0:01:49]} 17. Kg2 {[%clk 0:01:04]}  Bxe3 {[%clk 0:01:39]} 18. Rxe3 {[%clk 0:01:04]}  Rf4 {[%clk 0:01:39]} 19. Kg3 {[%clk 0:00:40]}  g5 {[%clk 0:01:24]} 20. h4 {[%clk 0:00:24]}  gxh4+ {[%clk 0:01:15]} 21. Nxh4 {[%clk 0:00:24]}  Qg5 {[%clk 0:01:08]} 22. Ng2 {[%clk 0:00:21]}  Raf8 {[%clk 0:00:59]} 23. Nxf4 {[%clk 0:00:18]}  Qxf4+ {[%clk 0:00:59]} 24. Kh3 {[%clk 0:00:18]}  Qxf2 {[%clk 0:00:38]} 25. Qe2 {[%clk 0:00:18]}  Qf4 {[%clk 0:00:32]} 26. Kg2 {[%clk 0:00:18]}  Qg5 {[%clk 0:00:19]} 27. Rf1 {[%clk 0:00:15]}  Rxf1 {[%clk 0:00:19]} 28. Kxf1 {[%clk 0:00:15]}  Qf4+ {[%clk 0:00:17]} 29. Kg2 {[%clk 0:00:09]}  Qd4 {[%clk 0:00:14]} 30. c3 {[%clk 0:00:07]}  Qa4 {[%clk 0:00:14]} 31. b3 {[%clk 0:00:04]}  Qf4 {[%clk 0:00:12]} 32. Qf3 {[%clk 0:00:05]}  Qg5 {[%clk 0:00:10]} 33. Qg3 {[%clk 0:00:04]}  Nf8 {[%clk 0:00:10]} 34. Rf3 {[%clk 0:00:02]}  Ng6 {[%clk 0:00:10]} 35. Kh3 {[%clk 0:00:02]}  Qh6+ {[%clk 0:00:10]} 36. Kg2 {[%clk 0:00:02]}  Nh4+ {[%clk 0:00:11]} 37. Kf2 {[%clk 0:00:02]}  Qd2+ {[%clk 0:00:10]} 38. Kg1 {[%clk 0:00:02]}  Qd1+ {[%clk 0:00:10]} 39. Rf1 {[%clk 0:00:02]}  Qd2 {[%clk 0:00:04]} 40. Qxh4 {[%clk 0:00:02]}  Qe3+ {[%clk 0:00:05]} 41. Qf2 {[%clk 0:00:02]}  Qxc3 {[%clk 0:00:04]} 42. Qf7+ {[%clk 0:00:02]}  Kh7 {[%clk 0:00:05]} 43. Qh5+ {[%clk 0:00:03]}  Kg8 {[%clk 0:00:06]} 44. Qf7+ {[%clk 0:00:02]}  Kh7 {[%clk 0:00:06]} 45. Qf3 {[%clk 0:00:03]}  Qd4+ {[%clk 0:00:06]} 46. Qf2 {[%clk 0:00:03]}  Qxe5 {[%clk 0:00:06]} 47. Qh2+ {[%clk 0:00:03]}  Qxh2+ {[%clk 0:00:05]} 48. Kxh2 {[%clk 0:00:04]}  e5 {[%clk 0:00:06]} 49. Kg3 {[%clk 0:00:04]}  Kg6 {[%clk 0:00:07]} 50. Rf5 {[%clk 0:00:03]}  e4 {[%clk 0:00:06]} 51. Kf4 {[%clk 0:00:04]}  a5 {[%clk 0:00:06]} 52. a4 {[%clk 0:00:04]}  b5 {[%clk 0:00:06]} 53. axb5 {[%clk 0:00:05]}  cxb5 {[%clk 0:00:05]} 54. Rxd5 {[%clk 0:00:05]}  a4 {[%clk 0:00:05]} 55. Rxb5 {[%clk 0:00:05]}  axb3 {[%clk 0:00:04]} 56. Rxb3 {[%clk 0:00:05]} 1-0


[Site "https://www.chess.com"]

[Event "Titled Tuesday Blitz May 30 Late 2023"]
[White "Maksimovic, Bojan"]
[Black "Maurizzi, Marc`Andria"]
[WhiteFideId "14408120"]
[BlackFideId "36083534"]
[WhiteElo "2468"]
[BlackElo "2421"]
[Result "0-1"]
[Round "03"]
[TimeControl "180+2"]
[Date "2023.05.31"]
[WhiteClock "0:00:04"]
[BlackClock "0:00:14"]

1. Nf3 {[%clk 0:03:00]}  d5 {[%clk 0:02:54]} 2. g3 {[%clk 0:03:01]}  Nd7 {[%clk 0:02:49]} 3. Bg2 {[%clk 0:03:01]}  e5 {[%clk 0:02:47]} 4. O-O {[%clk 0:03:01]}  Ngf6 {[%clk 0:02:48]} 5. d3 {[%clk 0:03:01]}  h6 {[%clk 0:02:47]} 6. Nbd2 {[%clk 0:02:59]}  Bd6 {[%clk 0:02:46]} 7. e4 {[%clk 0:02:58]}  c6 {[%clk 0:02:42]} 8. Re1 {[%clk 0:02:58]}  O-O {[%clk 0:02:42]} 9. b3 {[%clk 0:02:57]}  dxe4 {[%clk 0:02:41]} 10. dxe4 {[%clk 0:02:57]}  Qe7 {[%clk 0:02:35]} 11. a3 {[%clk 0:02:56]}  Rd8 {[%clk 0:02:31]} 12. Bb2 {[%clk 0:02:56]}  a5 {[%clk 0:02:30]} 13. Qc1 {[%clk 0:02:50]}  b6 {[%clk 0:02:28]} 14. Bc3 {[%clk 0:02:48]}  Bc7 {[%clk 0:02:25]} 15. Qb2 {[%clk 0:02:47]}  Ba6 {[%clk 0:02:24]} 16. Bf1 {[%clk 0:02:47]}  Bxf1 {[%clk 0:02:20]} 17. Kxf1 {[%clk 0:02:47]}  b5 {[%clk 0:02:19]} 18. Qc1 {[%clk 0:02:42]}  Bb6 {[%clk 0:02:16]} 19. b4 {[%clk 0:02:24]}  c5 {[%clk 0:01:51]} 20. bxa5 {[%clk 0:02:19]}  Bxa5 {[%clk 0:01:52]} 21. Bxa5 {[%clk 0:02:17]}  Rxa5 {[%clk 0:01:53]} 22. a4 {[%clk 0:02:18]}  Rxa4 {[%clk 0:01:47]} 23. Rxa4 {[%clk 0:02:18]}  bxa4 {[%clk 0:01:48]} 24. Nc4 {[%clk 0:02:18]}  Qe6 {[%clk 0:01:47]} 25. Nfd2 {[%clk 0:02:00]}  Nb6 {[%clk 0:01:29]} 26. Nxb6 {[%clk 0:02:00]}  Qxb6 {[%clk 0:01:29]} 27. Kg2 {[%clk 0:02:00]}  Qa5 {[%clk 0:01:26]} 28. c3 {[%clk 0:01:24]}  Qa6 {[%clk 0:01:19]} 29. Nb1 {[%clk 0:01:18]}  Qc4 {[%clk 0:00:39]} 30. f3 {[%clk 0:01:05]}  Rb8 {[%clk 0:00:34]} 31. Rf1 {[%clk 0:01:03]}  Qa2+ {[%clk 0:00:29]} 32. Nd2 {[%clk 0:00:40]}  Rb2 {[%clk 0:00:29]} 33. Rf2 {[%clk 0:00:41]}  a3 {[%clk 0:00:29]} 34. Qd1 {[%clk 0:00:41]}  Qe6 {[%clk 0:00:23]} 35. Qa4 {[%clk 0:00:41]}  Qa2 {[%clk 0:00:21]} 36. Qd1 {[%clk 0:00:39]}  Kh7 {[%clk 0:00:22]} 37. h4 {[%clk 0:00:39]}  Nh5 {[%clk 0:00:20]} 38. Kh3 {[%clk 0:00:38]}  Qe6+ {[%clk 0:00:20]} 39. Kg2 {[%clk 0:00:38]}  a2 {[%clk 0:00:20]} 40. Qa4 {[%clk 0:00:37]}  Qd6 {[%clk 0:00:19]} 41. Nf1 {[%clk 0:00:36]}  Qb6 {[%clk 0:00:16]} 42. Nd2 {[%clk 0:00:22]}  c4 {[%clk 0:00:16]} 43. Qa8 {[%clk 0:00:15]}  Qe3 {[%clk 0:00:14]} 44. Qd5 {[%clk 0:00:02]}  a1=Q {[%clk 0:00:14]} 45. Qxe5 {[%clk 0:00:02]}  Rxd2 {[%clk 0:00:13]} 46. Qf5+ {[%clk 0:00:02]}  g6 {[%clk 0:00:13]} 47. Qxf7+ {[%clk 0:00:03]}  Ng7 {[%clk 0:00:14]} 48. Qxg7+ {[%clk 0:00:03]}  Kxg7 {[%clk 0:00:14]} 49. g4 {[%clk 0:00:03]}  Qxf2+ {[%clk 0:00:14]} 50. Kh3 {[%clk 0:00:04]}  Qh1# {[%clk 0:00:14]} 0-1


[Site "https://www.chess.com"]

[Event "Titled Tuesday Blitz May 30 Late 2023"]
[White "Milikow, Yoav"]
[Black "Chylewski, Patryk"]
[WhiteFideId "2822237"]
[BlackFideId "1186191"]
[WhiteElo "2410"]
[BlackElo "2163"]
[Result "1-0"]
[Round "03"]
[TimeControl "180+2"]
[Date "2023.05.31"]
[WhiteClock "0:00:38"]
[BlackClock "0:00:02"]

1. c4 {[%clk 0:03:00]}  e6 {[%clk 0:02:52]} 2. Nc3 {[%clk 0:02:54]}  d5 {[%clk 0:02:52]} 3. d4 {[%clk 0:02:54]}  a6 {[%clk 0:02:53]} 4. cxd5 {[%clk 0:02:52]}  exd5 {[%clk 0:02:53]} 5. Qb3 {[%clk 0:02:51]}  Nc6 {[%clk 0:02:51]} 6. Nf3 {[%clk 0:02:43]}  Bf5 {[%clk 0:02:51]} 7. Qxd5 {[%clk 0:02:37]}  Qxd5 {[%clk 0:02:49]} 8. Nxd5 {[%clk 0:02:38]}  O-O-O {[%clk 0:02:49]} 9. Ne3 {[%clk 0:02:29]}  Be4 {[%clk 0:02:48]} 10. Bd2 {[%clk 0:02:24]}  Bxf3 {[%clk 0:02:30]} 11. exf3 {[%clk 0:02:25]}  Nxd4 {[%clk 0:02:30]} 12. O-O-O {[%clk 0:02:20]}  Nf6 {[%clk 0:02:25]} 13. Bc4 {[%clk 0:02:17]}  Ne6 {[%clk 0:02:19]} 14. Bc3 {[%clk 0:02:09]}  Bc5 {[%clk 0:02:07]} 15. Nf5 {[%clk 0:02:03]}  Bxf2 {[%clk 0:01:15]} 16. Nxg7 {[%clk 0:01:53]}  Nd4 {[%clk 0:01:15]} 17. Bxf7 {[%clk 0:01:37]}  c5 {[%clk 0:00:32]} 18. Be6+ {[%clk 0:01:11]}  Kb8 {[%clk 0:00:25]} 19. Bh3 {[%clk 0:01:06]}  Rhg8 {[%clk 0:00:24]} 20. Ne6 {[%clk 0:01:03]}  Rd6 {[%clk 0:00:16]} 21. Kb1 {[%clk 0:00:50]}  Re8 {[%clk 0:00:10]} 22. Nxc5 {[%clk 0:00:48]}  Re2 {[%clk 0:00:07]} 23. Nb3 {[%clk 0:00:41]}  Ne8 {[%clk 0:00:03]} 24. Nxd4 {[%clk 0:00:39]}  Bxd4 {[%clk 0:00:02]} 25. Rxd4 {[%clk 0:00:38]} 1-0


[Site "https://www.chess.com"]

[Event "Titled Tuesday Blitz May 30 Late 2023"]
[White "Tymrakiewicz, Rafal"]
[Black "Bordi, Kevin"]
[WhiteFideId "1108832"]
[BlackFideId "621862"]
[WhiteElo "2151"]
[BlackElo "2769"]
[Result "0-1"]
[Round "03"]
[TimeControl "180+2"]
[Date "2023.05.31"]
[WhiteClock "0:00:02"]
[BlackClock "0:00:44"]

1. d4 {[%clk 0:02:58]}  d5 {[%clk 0:03:00]} 2. Bg5 {[%clk 0:02:58]}  c5 {[%clk 0:03:00]} 3. e3 {[%clk 0:02:58]}  Nc6 {[%clk 0:03:01]} 4. c3 {[%clk 0:02:58]}  Qb6 {[%clk 0:03:00]} 5. Qb3 {[%clk 0:02:58]}  c4 {[%clk 0:03:01]} 6. Qc2 {[%clk 0:02:58]}  Bf5 {[%clk 0:02:56]} 7. Qc1 {[%clk 0:02:58]}  e5 {[%clk 0:02:52]} 8. Nf3 {[%clk 0:02:41]}  Bd6 {[%clk 0:02:52]} 9. dxe5 {[%clk 0:02:33]}  Nxe5 {[%clk 0:02:52]} 10. Nxe5 {[%clk 0:02:33]}  Bxe5 {[%clk 0:02:52]} 11. Nd2 {[%clk 0:02:33]}  Nf6 {[%clk 0:02:49]} 12. Be2 {[%clk 0:02:29]}  O-O {[%clk 0:02:48]} 13. O-O {[%clk 0:02:29]}  Rfe8 {[%clk 0:02:46]} 14. Nf3 {[%clk 0:02:27]}  Bc7 {[%clk 0:02:45]} 15. Bxf6 {[%clk 0:02:21]}  Qxf6 {[%clk 0:02:44]} 16. g3 {[%clk 0:02:05]}  Be4 {[%clk 0:02:43]} 17. Nd4 {[%clk 0:01:58]}  Re5 {[%clk 0:02:38]} 18. f4 {[%clk 0:01:57]}  Ree8 {[%clk 0:02:32]} 19. Bf3 {[%clk 0:01:54]}  Bb6 {[%clk 0:02:27]} 20. Qd2 {[%clk 0:01:38]}  Re7 {[%clk 0:02:21]} 21. Rae1 {[%clk 0:01:31]}  Rae8 {[%clk 0:02:20]} 22. Kf2 {[%clk 0:01:22]}  g6 {[%clk 0:02:19]} 23. Rg1 {[%clk 0:01:02]}  h5 {[%clk 0:02:19]} 24. Bd1 {[%clk 0:00:55]}  Bc5 {[%clk 0:02:17]} 25. Be2 {[%clk 0:00:35]}  a6 {[%clk 0:02:17]} 26. Bd1 {[%clk 0:00:35]}  b5 {[%clk 0:02:17]} 27. b4 {[%clk 0:00:36]}  cxb3 {[%clk 0:02:06]} 28. axb3 {[%clk 0:00:35]}  Ba7 {[%clk 0:01:45]} 29. b4 {[%clk 0:00:33]}  Rc8 {[%clk 0:01:44]} 30. Be2 {[%clk 0:00:23]}  Rec7 {[%clk 0:01:44]} 31. Rc1 {[%clk 0:00:23]}  h4 {[%clk 0:01:43]} 32. Bf3 {[%clk 0:00:17]}  Qe7 {[%clk 0:01:39]} 33. g4 {[%clk 0:00:15]}  h3 {[%clk 0:01:38]} 34. g5 {[%clk 0:00:15]}  Kg7 {[%clk 0:01:37]} 35. Rg3 {[%clk 0:00:14]}  Qd7 {[%clk 0:01:31]} 36. Bg4 {[%clk 0:00:14]}  Bf5 {[%clk 0:01:28]} 37. Bxf5 {[%clk 0:00:12]}  gxf5 {[%clk 0:01:29]} 38. Rxh3 {[%clk 0:00:12]}  Re8 {[%clk 0:01:26]} 39. Rg3 {[%clk 0:00:11]}  Re4 {[%clk 0:01:25]} 40. h4 {[%clk 0:00:11]}  Rc8 {[%clk 0:01:25]} 41. h5 {[%clk 0:00:11]}  Rce8 {[%clk 0:01:25]} 42. h6+ {[%clk 0:00:11]}  Kg6 {[%clk 0:01:25]} 43. Rh1 {[%clk 0:00:09]}  a5 {[%clk 0:01:19]} 44. Qd1 {[%clk 0:00:08]}  Kh7 {[%clk 0:01:18]} 45. Qh5 {[%clk 0:00:06]}  Rg8 {[%clk 0:01:18]} 46. g6+ {[%clk 0:00:05]}  fxg6 {[%clk 0:01:19]} 47. Qg5 {[%clk 0:00:06]}  axb4 {[%clk 0:01:14]} 48. cxb4 {[%clk 0:00:05]}  Bxd4 {[%clk 0:01:14]} 49. exd4 {[%clk 0:00:05]}  Rxd4 {[%clk 0:01:15]} 50. Qf6 {[%clk 0:00:05]}  Rxf4+ {[%clk 0:01:10]} 51. Kg2 {[%clk 0:00:03]}  d4 {[%clk 0:01:06]} 52. Re1 {[%clk 0:00:03]}  Re4 {[%clk 0:01:01]} 53. Rxe4 {[%clk 0:00:01]}  fxe4 {[%clk 0:00:59]} 54. Rg5 {[%clk 0:00:02]}  e3 {[%clk 0:00:53]} 55. Re5 {[%clk 0:00:02]}  Qg4+ {[%clk 0:00:53]} 56. Kh2 {[%clk 0:00:02]}  Kxh6 {[%clk 0:00:44]} 0-1


[Site "https://www.chess.com"]

[Event "Titled Tuesday Blitz May 30 Late 2023"]
[White "Tejedor Fuente, Enrique"]
[Black "Atanasov, Radislav"]
[WhiteFideId "2299100"]
[BlackFideId "2901471"]
[WhiteElo "2496"]
[BlackElo "2077"]
[Result "1-0"]
[Round "03"]
[TimeControl "180+2"]
[Date "2023.05.31"]
[WhiteClock "0:02:30"]
[BlackClock "0:01:42"]

1. d4 {[%clk 0:03:00]}  Nf6 {[%clk 0:02:58]} 2. Nf3 {[%clk 0:02:59]}  c5 {[%clk 0:02:57]} 3. d5 {[%clk 0:02:58]}  b5 {[%clk 0:02:53]} 4. a4 {[%clk 0:02:55]}  b4 {[%clk 0:02:45]} 5. c4 {[%clk 0:02:55]}  bxc3 {[%clk 0:02:34]} 6. Nxc3 {[%clk 0:02:53]}  g6 {[%clk 0:02:31]} 7. e4 {[%clk 0:02:52]}  d6 {[%clk 0:02:30]} 8. e5 {[%clk 0:02:50]}  dxe5 {[%clk 0:02:12]} 9. Nxe5 {[%clk 0:02:49]}  Bb7 {[%clk 0:02:07]} 10. Bb5+ {[%clk 0:02:47]}  Nbd7 {[%clk 0:02:07]} 11. Nc6 {[%clk 0:02:46]}  Qc7 {[%clk 0:02:02]} 12. O-O {[%clk 0:02:44]}  a6 {[%clk 0:01:57]} 13. Re1 {[%clk 0:02:32]}  axb5 {[%clk 0:01:43]} 14. Nxb5 {[%clk 0:02:31]}  Qb8 {[%clk 0:01:42]} 15. Nxb8 {[%clk 0:02:30]} 1-0


[Site "https://www.chess.com"]